fUSD/lending_fUSD_20260612
["ID","MTS","AMOUNT","RATE_DAILY","PERIOD"]
[424922074,1781273441000,-500.0,0.00013698,2]
[424922075,1781273441000,-500.0,0.00013698,2]
[424922044,1781273441000,-500.0,0.00013698,2]
[424922068,1781273441000,-500.0,0.00013698,2]
[424922060,1781273441000,-500.0,0.00013698,2]
[424922070,1781273441000,-500.0,0.00013698,2]
[424922055,1781273441000,-500.0,0.00013698,2]
[424922057,1781273441000,-500.0,0.00013698,2]
[424922042,1781273441000,-500.0,0.00013698,2]
[424922045,1781273441000,-500.0,0.00013698,2]
[424922046,1781273441000,-500.0,0.00013698,2]
[424922048,1781273441000,-500.0,0.00013698,2]
[424922049,1781273441000,-500.0,0.00013698,2]
[424922050,1781273441000,-500.0,0.00013698,2]
[424922047,1781273441000,-500.0,0.00013698,2]
[424922053,1781273441000,-500.0,0.00013698,2]
[424922054,1781273441000,-500.0,0.00013698,2]
[424922059,1781273441000,-500.0,0.00013698,2]
[424922052,1781273441000,-500.0,0.00013698,2]
[424922056,1781273441000,-500.0,0.00013698,2]
[424922051,1781273441000,-189.37017155,0.00013698,2]
[424922058,1781273441000,-500.0,0.00013698,2]
[424922111,1781273442000,-538.02,0.00013875,2]
[424922112,1781273442000,-886.52,0.00013888,2]
[424922110,1781273442000,-250.0,0.00013873,2]
[424922115,1781273442000,-886.52,0.00013919,2]
[424922114,1781273442000,-150.0,0.00013896,2]
[424922106,1781273442000,-886.52,0.00013856,2]
[424922109,1781273442000,-38763.42022368,0.00013864,2]
[424922107,1781273442000,-150.0,0.00013862,2]
[424922113,1781273442000,-150.0,0.00013893,2]
[424922104,1781273442000,-150.0,0.0001384,2]
[424922108,1781273442000,-150.0,0.00013862,2]
[424922117,1781273442000,-886.52,0.00013949,2]
[424922123,1781273442000,-954.3,0.00013989,2]
[424922119,1781273442000,-150.0,0.00013974,2]
[424922118,1781273442000,-1053.940307,0.0001395,2]
[424922122,1781273442000,-599.9,0.00013989,2]
[424922120,1781273442000,-886.52,0.00013978,2]
[424922126,1781273442000,-886.52,0.00014005,2]
[424922121,1781273442000,-150.0,0.00013987,2]
[424922124,1781273442000,-46726.30979107,0.0001399,2]
[424922127,1781273442000,-150.0,0.00014014,2]
[424922128,1781273442000,-886.52,0.00014031,2]
[424922130,1781273442000,-150.0,0.0001405,2]
[424922105,1781273442000,-150.0,0.00013852,2]
[424922116,1781273442000,-150.0,0.00013933,2]
[424922102,1781273442000,-201.02035911,0.0001384,2]
[424922087,1781273442000,-500.0,0.00013698,2]
[424922100,1781273442000,-886.52,0.00013821,2]
[424922079,1781273442000,-500.0,0.00013698,2]
[424922080,1781273442000,-500.0,0.00013698,2]
[424922076,1781273442000,-500.0,0.00013698,2]
[424922077,1781273442000,-555.64276628,0.00013698,2]
[424922078,1781273442000,-500.0,0.00013698,2]
[424922081,1781273442000,-500.0,0.00013698,2]
[424922082,1781273442000,-500.0,0.00013698,2]
[424922083,1781273442000,-500.0,0.00013698,2]
[424922084,1781273442000,-500.0,0.00013698,2]
[424922092,1781273442000,-150.0,0.00013731,2]
[424922132,1781273442000,-150.0,0.00014055,2]
[424922085,1781273442000,-500.0,0.00013698,2]
[424922090,1781273442000,-437.01,0.000137,2]
[424922089,1781273442000,-2500.0,0.00013699,2]
[424922086,1781273442000,-500.0,0.00013698,2]
[424922088,1781273442000,-200.0,0.00013699,2]
[424922091,1781273442000,-886.52,0.00013702,2]
[424922093,1781273442000,-886.52,0.00013745,2]
[424922094,1781273442000,-150.0,0.0001376,2]
[424922096,1781273442000,-150.0,0.00013771,2]
[424922095,1781273442000,-1191.06,0.00013769,2]
[424922097,1781273442000,-886.52,0.00013784,2]
[424922099,1781273442000,-150.0,0.00013821,2]
[424922098,1781273442000,-150.0,0.00013812,2]
[424922101,1781273442000,-30287.80529184,0.00013822,2]
[424922103,1781273442000,-175.51017956,0.0001384,2]
[424922129,1781273442000,-150.0,0.00014033,2]
[424922125,1781273442000,-250.0,0.00014,2]
[424922135,1781273442000,-150.0,0.00014095,2]
[424922163,1781273442000,-886.52,0.00014298,2]
[424922165,1781273442000,-30287.80529184,0.00014311,2]
[424922173,1781273442000,-150.0,0.00014379,2]
[424922164,1781273442000,-150.0,0.00014305,2]
[424922166,1781273442000,-886.52,0.00014317,2]
[424922171,1781273442000,-886.52,0.00014354,2]
[424922168,1781273442000,-38763.42022368,0.00014332,2]
[424922170,1781273442000,-150.0,0.00014338,2]
[424922167,1781273442000,-150.0,0.0001432,2]
[424922169,1781273442000,-886.52,0.00014336,2]
[424922172,1781273442000,-886.52,0.00014373,2]
[424922175,1781273442000,-948.4,0.00014399,2]
[424922162,1781273442000,-150.0,0.00014298,2]
[424922174,1781273442000,-886.52,0.00014391,2]
[424922177,1781273442000,-948.4,0.00014399,2]
[424922183,1781273442000,-150.0,0.00014424,2]
[424922178,1781273442000,-948.4,0.00014399,2]
[424922180,1781273442000,-40686.51011897,0.000144,2]
[424922179,1781273442000,-948.58,0.00014399,2]
[424922182,1781273442000,-150.0,0.00014419,2]
[424922181,1781273442000,-886.52,0.00014408,2]
[424922184,1781273442000,-150.0,0.00014424,2]
[424922131,1781273442000,-150.0,0.0001405,2]
[424922186,1781273442000,-150.0,0.00014441,2]
[424922188,1781273442000,-886.52,0.0001446,2]
[424922187,1781273442000,-886.52,0.00014443,2]
[424922176,1781273442000,-948.4,0.00014399,2]
[424922158,1781273442000,-150.0,0.00014257,2]
[424922185,1781273442000,-886.52,0.00014426,2]
[424922160,1781273442000,-886.52,0.00014278,2]
[424922161,1781273442000,-1252.0,0.00014297,2]
[424922136,1781273442000,-173.429437,0.00014095,2]
[424922134,1781273442000,-886.52,0.00014082,2]
[424922137,1781273442000,-213.857541,0.00014095,2]
[424922139,1781273442000,-731.31,0.00014099,2]
[424922138,1781273442000,-302.707331,0.00014095,2]
[424922142,1781273442000,-150.0,0.00014136,2]
[424922140,1781273442000,-886.52,0.00014106,2]
[424922141,1781273442000,-886.52,0.00014129,2]
[424922143,1781273442000,-886.52,0.00014152,2]
[424922144,1781273442000,-150.0,0.00014154,2]
[424922146,1781273442000,-150.0,0.00014169,2]
[424922133,1781273442000,-886.52,0.00014057,2]
[424922149,1781273442000,-886.52,0.00014196,2]
[424922145,1781273442000,-447.49376484,0.00014167,2]
[424922157,1781273442000,-3442.83975665,0.00014257,2]
[424922154,1781273442000,-150.0,0.00014237,2]
[424922155,1781273442000,-150.0,0.00014237,2]
[424922156,1781273442000,-886.52,0.00014238,2]
[424922152,1781273442000,-174.960488,0.00014236,2]
[424922159,1781273442000,-886.52,0.00014258,2]
[424922150,1781273442000,-150.0,0.00014217,2]
[424922151,1781273442000,-886.52,0.00014217,2]
[424922148,1781273442000,-150.0,0.00014176,2]
[424922147,1781273442000,-886.52,0.00014174,2]
[424922153,1781273442000,-150.0,0.00014237,2]
[424922225,1781273443000,-886.52,0.00014602,2]
[424922235,1781273443000,-300.54,0.00014655,2]
[424922232,1781273443000,-886.52,0.00014646,2]
[424922233,1781273443000,-150.0,0.00014653,2]
[424922236,1781273443000,-150.0,0.00014662,2]
[424922238,1781273443000,-900.0,0.000147,5]
[424922239,1781273443000,-150.0,0.00014703,2]
[424922240,1781273443000,-150.0,0.00014714,2]
[424922234,1781273443000,-886.96,0.00014654,2]
[424922231,1781273443000,-886.52,0.00014632,2]
[424922249,1781273443000,-150.0,0.0001482,2]
[424922241,1781273443000,-150.0,0.00014743,2]
[424922243,1781273443000,-150.0,0.00014799,2]
[424922242,1781273443000,-150.0,0.00014784,2]
[424922246,1781273443000,-30287.80529184,0.000148,2]
[424922245,1781273443000,-38763.42022368,0.000148,2]
[424922248,1781273443000,-900.0,0.000148,5]
[424922244,1781273443000,-150.0,0.00014799,2]
[424922251,1781273443000,-203.782588,0.0001484,2]
[424922247,1781273443000,-700.0,0.000148,5]
[424922221,1781273443000,-700.0,0.000146,5]
[424922253,1781273443000,-150.0,0.00014865,2]
[424922237,1781273443000,-700.0,0.000147,5]
[424922223,1781273443000,-900.0,0.000146,5]
[424922211,1781273443000,-886.52,0.00014541,2]
[424922226,1781273443000,-150.0,0.00014612,2]
[424922252,1781273443000,-150.0,0.0001485,2]
[424922191,1781273443000,-500.0,0.00014469,2]
[424922189,1781273443000,-150.0,0.0001446,2]
[424922196,1781273443000,-886.52,0.00014493,2]
[424922195,1781273443000,-150.0,0.00014487,2]
[424922193,1781273443000,-795.94,0.00014469,2]
[424922192,1781273443000,-1181.78,0.00014469,2]
[424922194,1781273443000,-886.52,0.00014476,2]
[424922197,1781273443000,-700.0,0.000145,5]
[424922198,1781273443000,-900.0,0.000145,5]
[424922209,1781273443000,-150.0,0.00014541,2]
[424922200,1781273443000,-150.0,0.000145,2]
[424922214,1781273443000,-886.52,0.00014572,2]
[424922202,1781273443000,-544.95,0.00014503,2]
[424922213,1781273443000,-886.52,0.00014556,2]
[424922204,1781273443000,-886.52,0.00014509,2]
[424922206,1781273443000,-886.52,0.00014525,2]
[424922215,1781273443000,-1500.0,0.00014575,2]
[424922216,1781273443000,-150.0,0.00014578,2]
[424922217,1781273443000,-150.0,0.00014581,2]
[424922228,1781273443000,-150.0,0.00014612,2]
[424922230,1781273443000,-150.0,0.00014622,2]
[424922229,1781273443000,-886.52,0.00014617,2]
[424922220,1781273443000,-886.52,0.00014587,2]
[424922255,1781273443000,-1108.95049289,0.00014899,5]
[424922190,1781273443000,-500.0,0.00014469,2]
[424922258,1781273443000,-599.9,0.00014899,2]
[424922284,1781273443000,-282.8290565,0.00014986,2]
[424922287,1781273443000,-252.02122671,0.00014986,2]
[424922286,1781273443000,-193.79231313,0.00014986,2]
[424922288,1781273443000,-295.39287249,0.00014986,2]
[424922292,1781273443000,-1108.95049289,0.00014999,5]
[424922290,1781273443000,-920.80717342,0.00014989,2]
[424922289,1781273443000,-190.82024742,0.00014986,2]
[424922291,1781273443000,-115976.93829048,0.00014989,2]
[424922293,1781273443000,-1108.95049287,0.00014999,5]
[424922295,1781273443000,-2000.0,0.00014999,2]
[424922294,1781273443000,-250.0,0.00014999,2]
[424922285,1781273443000,-215.3825728,0.00014986,2]
[424922296,1781273443000,-1108.95049288,0.00014999,5]
[424922300,1781273443000,-300.0,0.00014999,2]
[424922298,1781273443000,-300.0,0.00014999,2]
[424922304,1781273443000,-666.0,0.00014999,2]
[424922299,1781273443000,-300.0,0.00014999,2]
[424922302,1781273443000,-300.0,0.00014999,2]
[424922301,1781273443000,-666.0,0.00014999,2]
[424922305,1781273443000,-300.0,0.00014999,2]
[424922303,1781273443000,-300.0,0.00014999,2]
[424922307,1781273443000,-17908166.46696646,0.00015,2]
[424922306,1781273443000,-300.0,0.00014999,2]
[424922254,1781273443000,-162.33,0.00014875,2]
[424922297,1781273443000,-300.0,0.00014999,2]
[424922280,1781273443000,-291.6690779,0.00014908,2]
[424922250,1781273443000,-150.0,0.00014824,2]
[424922275,1781273443000,-3442.83975665,0.000149,2]
[424922256,1781273443000,-599.9,0.00014899,2]
[424922257,1781273443000,-599.9,0.00014899,2]
[424922259,1781273443000,-599.9,0.00014899,2]
[424922261,1781273443000,-600.02,0.00014899,2]
[424922281,1781273443000,-150.0,0.00014946,2]
[424922262,1781273443000,-954.3,0.00014899,2]
[424922263,1781273443000,-954.3,0.00014899,2]
[424922265,1781273443000,-954.3,0.00014899,2]
[424922264,1781273443000,-954.3,0.00014899,2]
[424922269,1781273443000,-469.42,0.000149,2]
[424922270,1781273443000,-10831.59005543,0.000149,2]
[424922267,1781273443000,-954.51569463,0.00014899,2]
[424922260,1781273443000,-599.9,0.00014899,2]
[424922266,1781273443000,-954.3,0.00014899,2]
[424922268,1781273443000,-647918.60703778,0.000149,4]
[424922277,1781273443000,-209.19058015,0.000149,2]
[424922278,1781273443000,-900.0,0.000149,5]
[424922283,1781273443000,-249.66496614,0.00014986,2]
[424922279,1781273443000,-150.0,0.00014905,2]
[424922282,1781273443000,-284.03421377,0.00014986,2]
[424922273,1781273443000,-870.0,0.000149,5]
[424922274,1781273443000,-679.30189251,0.000149,2]
[424922272,1781273443000,-447.49376484,0.000149,2]
[424922271,1781273443000,-25000.0,0.000149,3]
[424922276,1781273443000,-926.13468474,0.000149,2]
[424922309,1781273444000,-2785.5361041,0.00015,2]
[424922308,1781273444000,-1152.87088497,0.00015,2]
[424922312,1781273445000,-3954702.07493306,0.00015,2]
[424922311,1781273445000,-142323.28251102,0.00015,2]
[424922310,1781273445000,-3802.00789222,0.00015,2]
[424922313,1781273445000,-2081.90101932,0.00015,2]
[424922316,1781273445000,-7627.81617877,0.00015,2]
[424922315,1781273445000,-475.94190023,0.00015,2]
[424922314,1781273445000,-918.98,0.00015,2]
[424922317,1781273445000,-10517.08094923,0.00015,2]
[424922319,1781273445000,-3462825.87932399,0.00015,2]
[424922318,1781273445000,-150.0,0.00010014,7]
[424922325,1781273446000,-47548.4037305,0.00015,2]
[424922324,1781273446000,-3983.73659457,0.0001265,2]
[424922326,1781273446000,-707.3898016,0.00015,2]
[424922331,1781273446000,-508.20456636,0.00015,2]
[424922329,1781273446000,-30244.43612997,0.00015,2]
[424922328,1781273446000,-630.46499479,0.00015,2]
[424922330,1781273446000,-574.34470557,0.00015,2]
[424922327,1781273446000,-10766.22124304,0.00015,2]
[424922337,1781273447000,-4731.05,0.00013164,2]
[424922336,1781273447000,-1617.55,0.00013164,2]
[424922338,1781273447000,-64256.51180284,0.00015,2]
[424922340,1781273473000,-274.23187019,0.00011966,2]
[424922341,1781273526000,-183.71422356,0.00010299,2]
[424922342,1781273580000,-250.0,0.00010399,2]
[424922343,1781273633000,-1178.459,0.00010191,2]
[424922345,1781273686000,-153.154,0.00010191,2]
[424922346,1781273740000,-300.0,0.00010396,2]
[424922347,1781273793000,-220.65452647,0.00010299,2]
[424922349,1781273959000,-238.61325862,0.00010296,2]
[424922350,1781273959000,-80.10674138,0.00010299,2]
[424922348,1781273959000,-445.3169943,0.00010398,3]
[424922351,1781273979000,-445.3169943,0.00010398,3]
[424922352,1781273999000,-238.61325862,0.00010298,2]
[424922354,1781274052000,-1351.87551636,0.00010299,2]
[424922355,1781274071000,-3103.1653458,0.00010299,2]
[424922356,1781274092000,-1597.46813784,0.00010299,2]
[424922358,1781274144000,-1152.87088497,0.00010299,2]
[424922360,1781274165000,-1152.87088497,0.00010299,2]
[424922361,1781274188000,-1360.16,0.00010165,2]
[424922362,1781274240000,-977.19,9.855e-05,2]
[424922365,1781274357000,-539.5668507,9.787e-05,2]
[424922366,1781274397000,-426.0831493,9.787e-05,2]
[424922371,1781274427000,-74.86541183,0.00010198,2]
[424922370,1781274427000,-250.0,9.884e-05,2]
[424922369,1781274427000,-16.48,9.855e-05,2]
[424922373,1781274432000,-250.0,0.00010215,2]
[424922372,1781274432000,-163.74784679,0.00010198,2]
[424922375,1781274432000,-300.0,0.00010296,2]
[424922374,1781274432000,-150.0,0.00010295,2]
[424922376,1781274432000,-56.93876226,0.00010296,2]
[424922377,1781274452000,-120.07144959,0.00010296,2]
[424922379,1781274504000,-1217.65,9.779e-05,2]
[424922380,1781274558000,-160.25,9.779e-05,2]
[424922384,1781274559000,-9718.0,0.00010199,2]
[424922381,1781274559000,-150.0,9.989e-05,2]
[424922383,1781274559000,-7850.0,0.00010199,2]
[424922382,1781274559000,-2000.0,9.989e-05,2]
[424922385,1781274573000,-491.85250976,9.762e-05,2]
[424922387,1781274580000,-11059.14250976,0.00010199,2]
[424922386,1781274580000,-532.85749024,9.762e-05,2]
[424922390,1781274612000,-9840.0,0.00010199,2]
[424922389,1781274612000,-160.0,0.00010199,2]
[424922388,1781274612000,-1474.89,9.784e-05,2]
[424922392,1781274613000,-10000.0,0.00010199,2]
[424922391,1781274613000,-10000.0,0.00010199,2]
[424922393,1781274613000,-10000.0,0.00010199,2]
[424922394,1781274614000,-10000.0,0.00010199,2]
[424922395,1781274626000,-10000.0,0.00010199,2]
[424922396,1781274627000,-10000.0,0.00010199,2]
[424922398,1781274628000,-10000.0,0.00010199,2]
[424922397,1781274628000,-10000.0,0.00010199,2]
[424922399,1781274629000,-10000.0,0.00010199,2]
[424922400,1781274630000,-10000.0,0.00010199,2]
[424922423,1781274632000,-618.31401655,0.00010199,2]
[424922421,1781274632000,-1168.91636732,0.00010199,2]
[424922419,1781274632000,-790.89601248,0.00010199,2]
[424922414,1781274632000,-337.85531701,0.00010198,2]
[424922425,1781274632000,-374.94758386,0.00010199,2]
[424922417,1781274632000,-211.08119104,0.00010198,2]
[424922442,1781274632000,-137042.92051557,0.00010199,2]
[424922443,1781274632000,-140274.43182613,0.00010199,2]
[424922445,1781274632000,-1254.41808677,0.00010199,2]
[424922446,1781274632000,-2168.09710004,0.00010199,2]
[424922444,1781274632000,-207711.93630696,0.00010199,2]
[424922447,1781274632000,-4029.04697502,0.00010199,2]
[424922448,1781274632000,-2373.75181457,0.00010199,2]
[424922441,1781274632000,-212173.16232176,0.00010199,2]
[424922463,1781274638000,-1537.81882022,0.00010199,2]
[424922464,1781274638000,-1279.50649846,0.00010199,2]
[424922462,1781274638000,-2130.06088497,0.00010199,2]
[424922471,1781274639000,-102.29851212,0.00010199,2]
[424922491,1781274640000,-2249.95730968,0.00010199,2]
[424922490,1781274640000,-37.92726798,0.00010199,2]
[424922511,1781274643000,-29199.35060036,0.00010199,2]
[424922510,1781274643000,-342.01,0.00010199,2]
[424922513,1781274643000,-2743.58507305,0.00010199,2]
[424922512,1781274643000,-2646.86417145,0.00010199,2]
[424922542,1781274647000,-432.20359297,0.00010198,2]
[424922540,1781274647000,-203.2850549,0.00010198,2]
[424922541,1781274647000,-58.37988098,0.00010198,2]
[424922539,1781274647000,-31.08682581,0.00010198,2]
[424922546,1781274665000,-9.41652605,0.00010198,2]
[424922547,1781274719000,-500.0,9.862e-05,2]
[424922548,1781274772000,-500.0,0.00010198,2]
[424922549,1781274826000,-415.47763875,0.00010098,2]
[424922550,1781274827000,-1518.186,9.995e-05,2]
[424922552,1781274827000,-6907.1590303,0.00010099,2]
[424922553,1781274827000,-367.75754412,0.00010099,2]
[424922551,1781274827000,-153.155,9.995e-05,2]
[424922554,1781274827000,-150.0,0.00010197,2]
[424922555,1781274827000,-500.0,0.00010198,2]
[424922556,1781274827000,-403.74242558,0.00010198,2]
[424922559,1781274829000,-500.0,0.00010198,2]
[424922560,1781274829000,-500.0,0.00010198,2]
[424922558,1781274829000,-96.25757442,0.00010198,2]
[424922557,1781274829000,-161.87,9.835e-05,2]
[424922562,1781274830000,-500.0,0.00010198,2]
[424922561,1781274830000,-600.0,0.00010198,2]
[424922564,1781274830000,-500.0,0.00010198,2]
[424922565,1781274830000,-500.0,0.00010198,2]
[424922563,1781274830000,-500.0,0.00010198,2]
[424922567,1781274830000,-500.0,0.00010198,2]
[424922569,1781274830000,-500.0,0.00010198,2]
[424922566,1781274830000,-500.0,0.00010198,2]
[424922568,1781274830000,-500.0,0.00010198,2]
[424922573,1781274830000,-500.0,0.00010198,2]
[424922570,1781274830000,-500.0,0.00010198,2]
[424922572,1781274830000,-500.0,0.00010198,2]
[424922574,1781274830000,-500.0,0.00010198,2]
[424922575,1781274830000,-500.0,0.00010198,2]
[424922577,1781274830000,-500.0,0.00010198,2]
[424922576,1781274830000,-500.0,0.00010198,2]
[424922571,1781274830000,-500.0,0.00010198,2]
[424922578,1781274830000,-141.87242558,0.00010198,2]
[424922585,1781274831000,-500.0,0.00010198,2]
[424922586,1781274831000,-500.0,0.00010198,2]
[424922584,1781274831000,-500.0,0.00010198,2]
[424922581,1781274831000,-500.0,0.00010198,2]
[424922580,1781274831000,-500.0,0.00010198,2]
[424922579,1781274831000,-358.12757442,0.00010198,2]
[424922582,1781274831000,-500.0,0.00010198,2]
[424922583,1781274831000,-500.0,0.00010198,2]
[424922588,1781274831000,-500.0,0.00010198,2]
[424922592,1781274831000,-500.0,0.00010198,2]
[424922590,1781274831000,-500.0,0.00010198,2]
[424922587,1781274831000,-500.0,0.00010198,2]
[424922591,1781274831000,-500.0,0.00010198,2]
[424922593,1781274831000,-500.0,0.00010198,2]
[424922594,1781274831000,-500.0,0.00010198,2]
[424922597,1781274831000,-500.0,0.00010198,2]
[424922598,1781274831000,-641.87242558,0.00010199,2]
[424922596,1781274831000,-500.0,0.00010198,2]
[424922595,1781274831000,-500.0,0.00010198,2]
[424922589,1781274831000,-500.0,0.00010198,2]
[424922600,1781274832000,-9847.11014758,0.00010199,2]
[424922599,1781274832000,-152.88985242,0.00010199,2]
[424922601,1781274833000,-10000.0,0.00010199,2]
[424922602,1781274834000,-10000.0,0.00010199,2]
[424922603,1781274841000,-2797.7945,0.00010099,2]
[424922604,1781274841000,-7202.2055,0.00010199,2]
[424922605,1781274842000,-10000.0,0.00010199,2]
[424922608,1781274878000,-1830.51397161,0.00010199,2]
[424922615,1781275005000,-1876.69247929,9.8e-05,3]
[424922614,1781275005000,-3700.0,9.8e-05,3]
[424922613,1781275005000,-1000.0,9.7e-05,3]
[424922612,1781275005000,-1800.0,9.7e-05,3]
[424922611,1781275005000,-687.41166026,9.399e-05,2]
[424922610,1781275005000,-715.25586045,9.398e-05,2]
[424922609,1781275005000,-220.64,9.338e-05,2]
[424922617,1781275009000,-5500.0,9.9e-05,3]
[424922616,1781275009000,-123.30752071,9.8e-05,3]
[424922619,1781275009000,-1376.69247929,0.0001,3]
[424922618,1781275009000,-3000.0,9.9e-05,3]
[424922620,1781275010000,-6023.30752071,0.0001,3]
[424922621,1781275010000,-3976.69247929,0.0001,3]
[424922622,1781275011000,-123.30752071,0.0001,3]
[424922624,1781275011000,-2000.0,0.00010099,2]
[424922623,1781275011000,-822.2416,0.00010098,2]
[424922625,1781275011000,-4181.1272,0.00010099,2]
[424922627,1781275011000,-300.0,0.00010197,2]
[424922628,1781275011000,-73.32367929,0.00010198,2]
[424922626,1781275011000,-2500.0,0.00010099,2]
[424922629,1781275011000,-293.92,9.422e-05,2]
[424922630,1781275011000,-240.42637193,0.00010198,2]
[424922631,1781275011000,-500.0,0.00010198,2]
[424922640,1781275012000,-500.0,0.00010198,2]
[424922641,1781275012000,-500.0,0.00010198,2]
[424922642,1781275012000,-500.0,0.00010198,2]
[424922639,1781275012000,-500.0,0.00010198,2]
[424922637,1781275012000,-500.0,0.00010198,2]
[424922636,1781275012000,-500.0,0.00010198,2]
[424922643,1781275012000,-500.0,0.00010198,2]
[424922635,1781275012000,-500.0,0.00010198,2]
[424922632,1781275012000,-500.0,0.00010198,2]
[424922633,1781275012000,-500.0,0.00010198,2]
[424922638,1781275012000,-500.0,0.00010198,2]
[424922644,1781275012000,-500.0,0.00010198,2]
[424922634,1781275012000,-500.0,0.00010198,2]
[424922647,1781275012000,-500.0,0.00010198,2]
[424922645,1781275012000,-500.0,0.00010198,2]
[424922648,1781275012000,-500.0,0.00010198,2]
[424922649,1781275012000,-465.65362807,0.00010198,2]
[424922650,1781275012000,-34.34637193,0.00010198,2]
[424922651,1781275012000,-500.0,0.00010198,2]
[424922652,1781275012000,-500.0,0.00010198,2]
[424922654,1781275012000,-171.93780308,0.00010198,2]
[424922653,1781275012000,-333.42501218,0.00010198,2]
[424922655,1781275012000,-500.0,0.00010198,2]
[424922658,1781275012000,-500.0,0.00010198,2]
[424922657,1781275012000,-202.6994181,0.00010198,2]
[424922656,1781275012000,-500.0,0.00010198,2]
[424922646,1781275012000,-500.0,0.00010198,2]
[424922659,1781275013000,-500.0,0.00010198,2]
[424922661,1781275013000,-200.0,0.00010198,2]
[424922660,1781275013000,-500.0,0.00010198,2]
[424922662,1781275013000,-5557.59139471,0.00010198,2]
[424922663,1781275017000,-10000.0,0.00010198,2]
[424922664,1781275018000,-10000.0,0.00010198,2]
[424922668,1781275019000,-2528.57853199,0.00010199,2]
[424922667,1781275019000,-150.0,0.00010198,2]
[424922666,1781275019000,-7321.42146801,0.00010198,2]
[424922665,1781275019000,-10000.0,0.00010198,2]
[424922669,1781275090000,-1672.89727591,9.596e-05,2]
[424922671,1781275110000,-1068.05199218,9.596e-05,2]
[424922670,1781275110000,-604.84528373,9.399e-05,2]
[424922679,1781275111000,-500.0,9.799e-05,2]
[424922673,1781275111000,-983.19073191,9.596e-05,2]
[424922675,1781275111000,-400.0,9.7e-05,3]
[424922672,1781275111000,-637.45732703,8.999e-05,2]
[424922676,1781275111000,-500.0,9.799e-05,2]
[424922677,1781275111000,-500.0,9.799e-05,2]
[424922678,1781275111000,-500.0,9.799e-05,2]
[424922674,1781275111000,-275.0,9.691e-05,2]
[424922680,1781275112000,-500.0,9.799e-05,2]
[424922681,1781275112000,-500.0,9.799e-05,2]
[424922683,1781275112000,-412.42163239,9.799e-05,2]
[424922682,1781275112000,-500.0,9.799e-05,2]
[424922684,1781275112000,-500.0,9.799e-05,2]
[424922685,1781275112000,-900.0,9.8e-05,3]
[424922686,1781275112000,-1400.0,9.9e-05,3]
[424922689,1781275112000,-500.0,0.00010098,2]
[424922690,1781275112000,-8691.93030867,0.00010099,2]
[424922691,1781275112000,-10000.0,0.00010099,2]
[424922687,1781275112000,-991.93030867,0.0001,3]
[424922688,1781275112000,-808.06969133,0.0001,3]
[424922694,1781275131000,-500.0,0.00010027,2]
[424922695,1781275152000,-1522.69,0.00010027,2]
[424922696,1781275153000,-322.73207472,9.299e-05,2]
[424922697,1781275153000,-305.96468484,9.399e-05,2]
[424922699,1781275153000,-3230.30324044,0.00010099,2]
[424922698,1781275153000,-150.0,0.00010098,2]
[424922700,1781275203000,-1852.42,9.496e-05,2]
[424922701,1781275256000,-157.61,9.434e-05,2]
[424922702,1781275311000,-300.0,9.798e-05,2]
[424922703,1781275363000,-200.0,9.364e-05,2]
[424922704,1781275416000,-1579.92,9.334e-05,2]
[424922705,1781275471000,-1000.0,9.253e-05,2]